fUSD/lending_fUSD_20251222
["ID","MTS","AMOUNT","RATE_DAILY","PERIOD"]
[399478761,1766410241200,-500.0,0.00016172,2]
[399478762,1766410241210,-500.0,0.00016172,2]
[399478763,1766410241221,-500.0,0.00016172,2]
[399478764,1766410241230,-500.0,0.00016172,2]
[399478765,1766410241240,-500.0,0.00016172,2]
[399478766,1766410241250,-500.0,0.00016172,2]
[399478767,1766410241260,-500.0,0.00016172,2]
[399478768,1766410241269,-500.0,0.00016172,2]
[399478769,1766410241279,-500.0,0.00016172,2]
[399478770,1766410241289,-500.0,0.00016172,2]
[399478771,1766410241299,-500.0,0.00016172,2]
[399478772,1766410241309,-500.0,0.00016172,2]
[399478773,1766410241318,-500.0,0.00016172,2]
[399478774,1766410241328,-500.0,0.00016172,2]
[399478775,1766410241338,-500.0,0.00016172,2]
[399478776,1766410241347,-454.88526239,0.00016172,2]
[399478777,1766410241362,-500.0,0.00016172,2]
[399478778,1766410241372,-500.0,0.00016172,2]
[399478779,1766410241382,-500.0,0.00016172,2]
[399478780,1766410241392,-500.0,0.00016172,2]
[399478781,1766410241402,-500.0,0.00016172,2]
[399478782,1766410241412,-500.0,0.00016172,2]
[399478783,1766410241422,-500.0,0.00016172,2]
[399478784,1766410241431,-500.0,0.00016172,2]
[399478785,1766410241441,-500.0,0.00016172,2]
[399478786,1766410241450,-500.0,0.00016172,2]
[399478787,1766410241460,-500.0,0.00016172,2]
[399478788,1766410241469,-500.0,0.00016172,2]
[399478789,1766410241479,-500.0,0.00016172,2]
[399478790,1766410241488,-500.0,0.00016172,2]
[399478791,1766410241498,-500.0,0.00016172,2]
[399478792,1766410241508,-500.0,0.00016172,2]
[399478793,1766410241517,-500.0,0.00016172,2]
[399478794,1766410241527,-500.0,0.00016172,2]
[399478795,1766410241537,-500.0,0.00016172,2]
[399478796,1766410241546,-500.0,0.00016172,2]
[399478797,1766410241556,-500.0,0.00016172,2]
[399478798,1766410241566,-500.0,0.00016172,2]
[399478799,1766410241576,-500.0,0.00016172,2]
[399478800,1766410241585,-500.0,0.00016172,2]
[399478801,1766410241594,-317.63682665,0.00016172,2]
[399478802,1766410241603,-500.0,0.00016172,2]
[399478803,1766410241613,-500.0,0.00016172,2]
[399478804,1766410241623,-500.0,0.00016172,2]
[399478805,1766410241633,-500.0,0.00016172,2]
[399478806,1766410241643,-250.0,0.00016172,2]
[399478807,1766410241652,-500.0,0.00016172,2]
[399478808,1766410241662,-500.0,0.00016172,2]
[399478809,1766410241673,-500.0,0.00016172,2]
[399478810,1766410241684,-250.0,0.00016172,2]
[399478811,1766410241696,-500.0,0.00016172,2]
[399478812,1766410241710,-500.0,0.00016172,2]
[399478813,1766410241721,-250.0,0.00016172,2]
[399478814,1766410241730,-500.0,0.00016172,2]
[399478815,1766410241740,-250.0,0.00016172,2]
[399478816,1766410241749,-500.0,0.00016172,2]
[399478817,1766410241759,-194.72792766,0.00016172,2]
[399478818,1766410241769,-250.0,0.00016172,2]
[399478819,1766410241778,-500.0,0.00016172,2]
[399478820,1766410241788,-250.0,0.00016172,2]
[399478821,1766410241797,-500.0,0.00016172,2]
[399478822,1766410241807,-250.0,0.00016172,2]
[399478823,1766410241816,-500.0,0.00016172,2]
[399478824,1766410241826,-250.0,0.00016172,2]
[399478825,1766410241835,-250.0,0.00016172,2]
[399478826,1766410241845,-533.88981491,0.00016172,2]
[399478827,1766410241854,-348.97018415,0.00016172,2]
[399478828,1766410241864,-151.0,0.00016172,2]
[399478829,1766410241874,-200.0,0.00016172,2]
[399478830,1766410241883,-250.0,0.00016172,2]
[399478831,1766410241892,-250.0,0.00016172,2]
[399478832,1766410241903,-200.0,0.00016172,2]
[399478833,1766410241912,-250.0,0.00016172,2]
[399478834,1766410241921,-250.0,0.00016172,2]
[399478835,1766410241934,-250.0,0.00016172,2]
[399478836,1766410241943,-250.0,0.00016172,2]
[399478837,1766410241952,-250.0,0.00016172,2]
[399478838,1766410241962,-250.0,0.00016172,2]
[399478839,1766410241972,-250.0,0.00016172,2]
[399478840,1766410241981,-250.0,0.00016172,2]
[399478841,1766410241990,-250.0,0.00016172,2]
[399478842,1766410241999,-250.0,0.00016172,2]
[399478843,1766410242009,-250.0,0.00016172,2]
[399478844,1766410242018,-250.0,0.00016172,2]
[399478845,1766410242028,-250.0,0.00016172,2]
[399478846,1766410242041,-250.0,0.00016172,2]
[399478847,1766410242051,-250.0,0.00016172,2]
[399478848,1766410242061,-250.0,0.00016172,2]
[399478849,1766410242077,-250.0,0.00016172,2]
[399478850,1766410242090,-250.0,0.00016172,2]
[399478851,1766410242100,-250.0,0.00016172,2]
[399478852,1766410242110,-250.0,0.00016172,2]
[399478853,1766410242121,-250.0,0.00016172,2]
[399478854,1766410242131,-250.0,0.00016172,2]
[399478855,1766410242141,-250.0,0.00016172,2]
[399478856,1766410242151,-250.0,0.00016172,2]
[399478857,1766410242161,-250.0,0.00016172,2]
[399478858,1766410242170,-250.0,0.00016172,2]
[399478859,1766410242180,-250.0,0.00016172,2]
[399478860,1766410242190,-250.0,0.00016172,2]
[399478861,1766410242200,-250.0,0.00016172,2]
[399478862,1766410242210,-1451.69716232,0.00016172,2]
[399478863,1766410242219,-250.0,0.00016172,2]
[399478864,1766410242230,-250.0,0.00016172,2]
[399478865,1766410242239,-250.0,0.00016172,2]
[399478866,1766410242249,-250.0,0.00016172,2]
[399478867,1766410242259,-250.0,0.00016172,2]
[399478868,1766410242269,-250.0,0.00016172,2]
[399478869,1766410242279,-250.0,0.00016172,2]
[399478870,1766410242288,-250.0,0.00016172,2]
[399478871,1766410242298,-220.0,0.00016172,2]
[399478872,1766410242308,-220.0,0.00016172,2]
[399478873,1766410242319,-220.0,0.00016172,2]
[399478874,1766410242332,-220.0,0.00016172,2]
[399478875,1766410242344,-220.0,0.00016172,2]
[399478876,1766410242356,-220.65667203,0.00016172,2]
[399478877,1766410242367,-500.0,0.00016172,2]
[399478878,1766410242377,-500.0,0.00016172,2]
[399478879,1766410242389,-500.0,0.00016172,2]
[399478880,1766410242400,-500.0,0.00016172,2]
[399478881,1766410242410,-500.0,0.00016172,2]
[399478882,1766410242420,-500.0,0.00016172,2]
[399478883,1766410242430,-500.0,0.00016172,2]
[399478884,1766410242440,-500.0,0.00016172,2]
[399478885,1766410242450,-500.0,0.00016172,2]
[399478886,1766410242460,-500.0,0.00016172,2]
[399478887,1766410242471,-634.56641251,0.00016172,2]
[399478888,1766410242481,-396.69773441,0.00016172,2]
[399478889,1766410242491,-1262.0,0.00016182,2]
[399478890,1766410242500,-518.0,0.00016182,2]
[399478891,1766410242511,-1198.0,0.00016182,2]
[399478892,1766410242523,-914.116,0.00016182,2]
[399478893,1766410242533,-3457.0,0.00016182,2]
[399478894,1766410242546,-1326.0,0.00016182,2]
[399478895,1766410242556,-612.0,0.00016182,2]
[399478896,1766410242566,-5000.00168052,0.000162,5]
[399478897,1766410242576,-396.69773441,0.00016263,2]
[399478898,1766410242587,-396.69773441,0.00016354,2]
[399478899,1766410242598,-1000.0,0.000164,2]
[399478900,1766410242608,-346.92554585,0.00016422,2]
[399478901,1766410242620,-599.60298507,0.00016423,2]
[399478902,1766410242631,-233.51889341,0.00016424,2]
[399478903,1766410242642,-759.6,0.00016438,2]
[399478904,1766410242652,-500.0,0.00016438,2]
[399478905,1766410242663,-500.0,0.00016438,2]
[399478906,1766410242673,-500.0,0.00016438,2]
[399478907,1766410242684,-500.0,0.00016438,2]
[399478908,1766410242694,-500.0,0.00016438,2]
[399478909,1766410242704,-500.0,0.00016438,2]
[399478910,1766410242714,-573.06137411,0.00016438,2]
[399478911,1766410242725,-500.0,0.00016438,2]
[399478913,1766410242735,-500.0,0.00016438,2]
[399478914,1766410242745,-500.0,0.00016438,2]
[399478915,1766410242758,-500.0,0.00016438,2]
[399478916,1766410242768,-500.0,0.00016438,2]
[399478917,1766410242778,-500.0,0.00016438,2]
[399478918,1766410242788,-500.0,0.00016438,2]
[399478920,1766410242799,-500.0,0.00016438,2]
[399478921,1766410242810,-500.0,0.00016438,2]
[399478922,1766410242820,-500.0,0.00016438,2]
[399478923,1766410242830,-500.0,0.00016438,2]
[399478924,1766410242840,-500.0,0.00016438,2]
[399478925,1766410242851,-500.0,0.00016438,2]
[399478926,1766410242863,-500.0,0.00016438,2]
[399478927,1766410242873,-500.0,0.00016438,2]
[399478928,1766410242884,-800.0,0.00016438,2]
[399478929,1766410242894,-396.69773441,0.00016445,2]
[399478931,1766410242904,-396.69773441,0.00016536,2]
[399478932,1766410242914,-1000.0,0.000166,2]
[399478933,1766410242923,-396.69773441,0.00016627,2]
[399478934,1766410242933,-1098.0,0.00016639,2]
[399478935,1766410242943,-2379.93560187,0.0001666,2]
[399478936,1766410242953,-250.0,0.00016699,2]
[399478937,1766410242965,-500.0,0.00016699,2]
[399478938,1766410242975,-204.06937007,0.00016699,2]
[399478939,1766410242985,-396.69773441,0.00016718,2]
[399478942,1766410242995,-500.0,0.0001672,2]
[399478944,1766410243005,-260.32380888,0.0001672,2]
[399478945,1766410243016,-553.64373807,0.0001672,2]
[399478946,1766410243026,-151.0,0.0001672,2]
[399478947,1766410243037,-200.0,0.0001672,2]
[399478948,1766410243048,-200.0,0.0001672,2]
[399478949,1766410243059,-624.0,0.00016726,2]
[399478950,1766410243068,-218.94040286,0.00016772,2]
[399478951,1766410243079,-2217.3339,0.00016773,2]
[399478952,1766410243089,-269.39249738,0.000168,2]
[399478953,1766410243099,-420.102446,0.000168,2]
[399478954,1766410243109,-396.69773441,0.00016809,2]
[399478955,1766410243120,-420.10244592,0.00016811,2]
[399478956,1766410243131,-420.10244592,0.00016822,2]
[399478957,1766410243141,-274.34,0.00016829,2]
[399478958,1766410243152,-6537.70853,0.0001683,2]
[399478959,1766410243162,-420.10244592,0.00016833,2]
[399478960,1766410243172,-420.10244592,0.00016844,2]
[399478961,1766410243182,-420.10244592,0.00016856,2]
[399478962,1766410243192,-393.53307807,0.00016863,2]
[399478963,1766410243202,-200.0,0.00016863,2]
[399478964,1766410243212,-200.0,0.00016864,2]
[399478965,1766410243223,-200.0,0.00016864,2]
[399478966,1766410243233,-420.10244592,0.00016867,2]
[399478967,1766410243244,-1470.56,0.00016872,2]
[399478968,1766410243255,-1470.56,0.00016872,2]
[399478969,1766410243266,-1470.56,0.00016872,2]
[399478970,1766410243276,-1470.56,0.00016872,2]
[399478971,1766410243286,-500.0,0.00016872,2]
[399478972,1766410243296,-500.0,0.00016872,2]
[399478973,1766410243307,-500.0,0.00016872,2]
[399478974,1766410243318,-500.0,0.00016872,2]
[399478975,1766410243328,-630.24,0.00016872,2]
[399478976,1766410243338,-630.24,0.00016872,2]
[399478977,1766410243348,-630.24,0.00016872,2]
[399478978,1766410243364,-630.24,0.00016872,2]
[399478979,1766410243379,-5905.0,0.00016872,2]
[399478980,1766410243389,-150.0,0.00016872,2]
[399478981,1766410243400,-1000000.0,0.00016873,2]
[399478982,1766410243410,-420.10244592,0.00016878,2]
[399478983,1766410243421,-420.10244592,0.00016889,2]
[399478984,1766410243431,-10073.051,0.000169,2]
[399478985,1766410243441,-712.2834,0.000169,2]
[399478987,1766410243451,-420.10244592,0.000169,2]
[399478988,1766410243461,-482.31094882,0.000169,2]
[399478989,1766410243472,-619.69648958,0.000169,2]
[399478990,1766410243482,-396.69773441,0.000169,2]
[399478991,1766410243492,-714.74572409,0.000169,2]
[399478992,1766410243503,-265.0,0.00016944,2]
[399478993,1766410243513,-6537.70854,0.0001695,2]
[399478994,1766410243523,-242.15909246,0.00016972,2]
[399478995,1766410243533,-500.0,0.00016973,2]
[399478996,1766410243543,-500.0,0.00016973,2]
[399478997,1766410243553,-500.0,0.00016973,2]
[399478998,1766410243564,-500.0,0.00016973,2]
[399478999,1766410243574,-500.0,0.00016973,2]
[399479000,1766410243584,-500.0,0.00016973,2]
[399479001,1766410243594,-500.0,0.00016973,2]
[399479002,1766410243605,-500.0,0.00016973,2]
[399479003,1766410243617,-500.0,0.00016973,2]
[399479004,1766410243626,-500.0,0.00016973,2]
[399479005,1766410243637,-500.0,0.00016973,2]
[399479006,1766410243649,-500.0,0.00016973,2]
[399479007,1766410243659,-500.0,0.00016973,2]
[399479008,1766410243670,-500.0,0.00016973,2]
[399479009,1766410243680,-500.0,0.00016973,2]
[399479010,1766410243690,-500.0,0.00016973,2]
[399479011,1766410243701,-500.0,0.00016973,2]
[399479012,1766410243713,-500.0,0.00016973,2]
[399479013,1766410243723,-500.0,0.00016973,2]
[399479014,1766410243733,-500.0,0.00016973,2]
[399479015,1766410243743,-500.0,0.00016973,2]
[399479016,1766410243756,-500.0,0.00016973,2]
[399479017,1766410243766,-575.25123354,0.00016973,2]
[399479018,1766410243776,-566.4005916,0.00016973,2]
[399479019,1766410243786,-500.0,0.00016973,2]
[399479020,1766410243797,-500.0,0.00016973,2]
[399479021,1766410243807,-500.0,0.00016973,2]
[399479022,1766410243817,-500.0,0.00016973,2]
[399479023,1766410243827,-500.0,0.00016973,2]
[399479024,1766410243837,-500.0,0.00016973,2]
[399479025,1766410243847,-500.0,0.00016973,2]
[399479026,1766410243857,-500.0,0.00016973,2]
[399479027,1766410243867,-500.0,0.00016973,2]
[399479028,1766410243877,-500.0,0.00016973,2]
[399479029,1766410243887,-500.0,0.00016973,2]
[399479030,1766410243897,-500.0,0.00016973,2]
[399479031,1766410243908,-577.70558009,0.00016973,2]
[399479032,1766410243917,-344.75321982,0.00016973,2]
[399479033,1766410243928,-500.0,0.00016973,2]
[399479034,1766410243938,-500.0,0.00016973,2]
[399479035,1766410243947,-161.12986217,0.00016973,2]
[399479036,1766410243957,-500.0,0.00016973,2]
[399479037,1766410243967,-500.0,0.00016973,2]
[399479038,1766410243977,-150.0,0.00016973,2]
[399479039,1766410243988,-150.0,0.00016973,2]
[399479040,1766410243999,-393.53307807,0.0001699,2]
[399479041,1766410244009,-393.53307807,0.0001699,2]
[399479042,1766410244019,-506.6711808,0.00016999,2]
[399479043,1766410244029,-300.0,0.00016999,2]
[399479044,1766410244042,-500.0,0.00016999,2]
[399479045,1766410244053,-500.0,0.00016999,2]
[399479046,1766410244063,-500.0,0.00016999,2]
[399479047,1766410244073,-500.0,0.00016999,2]
[399479048,1766410244085,-525.99859536,0.00016999,2]
[399479049,1766410244095,-500.0,0.00016999,2]
[399479050,1766410244105,-500.0,0.00016999,2]
[399479051,1766410244116,-500.0,0.00016999,2]
[399479052,1766410244127,-500.0,0.00016999,2]
[399479053,1766410244136,-513.1625593,0.00016999,2]
[399479054,1766410244146,-500.0,0.00016999,2]
[399479055,1766410244156,-666.0,0.00016999,2]
[399479056,1766410244166,-3465.0357878,0.00016999,2]
[399479057,1766410244176,-500.0,0.00016999,2]
[399479058,1766410244187,-500.0,0.00016999,2]
[399479059,1766410244197,-300.0,0.00016999,2]
[399479060,1766410244208,-666.0,0.00016999,2]
[399479061,1766410244218,-500.0,0.00016999,2]
[399479062,1766410244227,-500.0,0.00016999,2]
[399479063,1766410244237,-500.0,0.00016999,2]
[399479064,1766410244248,-500.0,0.00016999,2]
[399479065,1766410244258,-500.0,0.00016999,2]
[399479066,1766410244268,-666.0,0.00016999,2]
[399479067,1766410244278,-1470.56,0.00016999,2]
[399479068,1766410244289,-1470.56,0.00016999,2]
[399479069,1766410244299,-1470.56,0.00016999,2]
[399479070,1766410244309,-1470.56,0.00016999,2]
[399479071,1766410244319,-1470.56,0.00016999,2]
[399479072,1766410244328,-1470.56,0.00016999,2]
[399479073,1766410244338,-1470.56,0.00016999,2]
[399479074,1766410244349,-1470.56,0.00016999,2]
[399479075,1766410244359,-1470.56,0.00016999,2]
[399479076,1766410244369,-1470.56,0.00016999,2]
[399479077,1766410244378,-1470.56,0.00016999,2]
[399479078,1766410244387,-1470.56,0.00016999,2]
[399479079,1766410244398,-1470.56,0.00016999,2]
[399479080,1766410244408,-1470.56,0.00016999,2]
[399479081,1766410244418,-1470.56,0.00016999,2]
[399479082,1766410244430,-1470.56,0.00016999,2]
[399479083,1766410244445,-1470.56,0.00016999,2]
[399479084,1766410244453,-1470.56,0.00016999,2]
[399479085,1766410244463,-1470.56,0.00016999,2]
[399479086,1766410244472,-1470.73353834,0.00016999,2]
[399479087,1766410244481,-300.0,0.00016999,2]
[399479088,1766410244490,-392.8445188,0.00016999,2]
[399479089,1766410244500,-500.0,0.00016999,2]
[399479090,1766410244509,-578.59832559,0.00016999,2]
[399479091,1766410244519,-630.24,0.00016999,2]
[399479092,1766410244534,-630.24,0.00016999,2]
[399479093,1766410244543,-630.24,0.00016999,2]
[399479094,1766410244553,-630.24,0.00016999,2]
[399479095,1766410244563,-630.24,0.00016999,2]
[399479096,1766410244573,-630.24,0.00016999,2]
[399479097,1766410244582,-630.24,0.00016999,2]
[399479098,1766410244592,-630.24,0.00016999,2]
[399479099,1766410244601,-630.24,0.00016999,2]
[399479100,1766410244610,-630.24,0.00016999,2]
[399479101,1766410244620,-630.24,0.00016999,2]
[399479102,1766410244629,-630.24,0.00016999,2]
[399479103,1766410244638,-630.24,0.00016999,2]
[399479104,1766410244648,-630.24,0.00016999,2]
[399479105,1766410244658,-630.24,0.00016999,2]
[399479106,1766410244669,-630.24,0.00016999,2]
[399479107,1766410244678,-630.24,0.00016999,2]
[399479108,1766410244688,-630.24,0.00016999,2]
[399479109,1766410244699,-630.24,0.00016999,2]
[399479110,1766410244713,-630.3,0.00016999,2]
[399479111,1766410244724,-4065275.55077985,0.00017,2]
[399479112,1766410244734,-649288.45023747,0.00017,2]
[399479113,1766410244744,-5010.10112226,0.00017,3]
[399479114,1766410244753,-231813.42955879,0.00017,2]
[399479115,1766410244763,-160.0,0.00017,2]
[399479116,1766410244773,-250.0,0.00017,2]
[399479117,1766410244782,-151.0,0.00017,2]
[399479118,1766410244793,-650.03599902,0.00017,2]
[399479119,1766410244803,-2000.0,0.00017,2]
[399479120,1766410244813,-151.0,0.00017,2]
[399479121,1766410244822,-151.0,0.00017,2]
[399479122,1766410244833,-151.0,0.00017,2]
[399479123,1766410244844,-153.873509,0.00017,2]
[399479124,1766410244854,-151.0,0.00017,2]
[399479125,1766410244864,-492902.5868767,0.00017,2]
[399479128,1766410245757,-459.56551147,0.00016182,2]
[399479129,1766410245778,-1149.43448853,0.00016182,2]
[399479130,1766410245787,-3544.14025128,0.00017,2]
[399479131,1766410245801,-658.769994,0.00017,2]
[399479132,1766410245852,-108258.31408894,0.00017,2]
[399479133,1766410245865,-322.8851817,0.00017,2]
[399479134,1766410245950,-1056.719951,0.00017,2]
[399479135,1766410246133,-1875.80863469,0.00017,2]
[399479136,1766410246144,-13861.54804547,0.00017,2]
[399479137,1766410246155,-649.62328074,0.00017,2]
[399479149,1766411432432,-150.0,0.0001476,2]
[399479150,1766411432444,-232.35999,0.00014767,2]
[399479151,1766411432457,-308.73289512,0.00014767,2]
[399479152,1766411432469,-574.96778752,0.00014774,3]
[399479153,1766411432481,-424.03221248,0.00014774,3]
[399479154,1766411432492,-200.0,0.00014783,2]
[399479155,1766411432503,-1600.0,0.00014945,2]
[399479156,1766411432513,-91.96778752,0.00015178,2]
[399479157,1766411432537,-108.03221248,0.00015178,2]
[399479158,1766411432547,-194.72792766,0.00015178,2]
[399479159,1766411432557,-578.20924308,0.00015178,2]
[399479160,1766411432568,-411.27633138,0.00015287,2]
[399479161,1766411432579,-499.42980836,0.00015287,2]
[399479162,1766411432596,-289.29386026,0.00015287,2]
[399479163,1766411432606,-150.0,0.00015288,2]
[399479164,1766411432616,-150.0,0.00015288,2]
[399479165,1766411432627,-150.0,0.00015288,2]
[399479166,1766411432637,-168.0,0.00015395,2]
[399479167,1766411432648,-168.0,0.00015402,2]
[399479168,1766411432660,-166.66,0.00015415,2]
[399479169,1766411432671,-168.0,0.00015503,2]
[399479170,1766411432683,-168.0,0.00015515,2]
[399479171,1766411432694,-16.51978384,0.00015523,2]
[399479172,1766411432707,-283.48021616,0.00015523,2]
[399479173,1766411432717,-45.76096318,0.00015524,2]
[399479174,1766411432751,-633.66903682,0.00015524,2]
[399479175,1766411432761,-168.0,0.00015589,2]
[399479176,1766411432772,-217.02305777,0.00015602,2]
[399479177,1766411432782,-204.06937007,0.00015627,2]
[399479178,1766411432793,-500.0,0.00015627,2]
[399479179,1766411432803,-250.0,0.00015627,2]
[399479180,1766411432814,-3270.4973807,0.00015649,2]
[399479181,1766411432826,-511.71246314,0.00015649,2]
[399479182,1766411432846,-2233.21276205,0.00015649,2]
[399479287,1766411438679,-150.0,0.00015627,2]
[399479288,1766411438689,-3407.83562371,0.00015649,2]
[399479289,1766411438700,-19578.7417704,0.00015649,2]
[399479290,1766411438710,-150.0,0.00015654,2]
[399479291,1766411438720,-168.0,0.00015671,2]
[399479292,1766411438730,-150.0,0.00015682,2]
[399479293,1766411438739,-282.55,0.00015688,2]
[399479294,1766411438749,-261.8394808,0.00015709,2]
[399479295,1766411438759,-174.0,0.00015709,2]
[399479296,1766411438768,-322.6107,0.00015714,2]
[399479297,1766411438778,-201.93286099,0.00015726,2]
[399479298,1766411438787,-166.66,0.00015744,2]
[399479299,1766411438796,-168.0,0.00015798,2]
[399479300,1766411438807,-27777.74461243,0.00015801,2]
[399479301,1766411438818,-2256.70555665,0.00015801,2]
[399479302,1766411438829,-1705.07979963,0.00015801,2]
[399479303,1766411438840,-4037.12756131,0.00015801,2]
[399479304,1766411438852,-2530.7709,0.00015801,2]
[399479305,1766411438863,-439.48628052,0.00015801,2]
[399479306,1766411438874,-2416.93348734,0.00015801,2]
[399479307,1766411438885,-10382.20550006,0.00015801,2]
[399479308,1766411438904,-1045.80767326,0.00015801,2]
[399479309,1766411438915,-580.53596721,0.00015801,2]
[399479310,1766411438930,-3517.13058712,0.00015801,2]
[399479311,1766411438941,-2106.82726274,0.00015801,2]
[399479316,1766411440122,-375.16859773,0.00015801,2]
[399479317,1766411440133,-940828.476214,0.00015801,2]
[399479318,1766411440142,-168.0,0.00015809,2]
[399479319,1766411440152,-2217.3339,0.00015811,2]
[399479320,1766411440162,-1586.79093764,0.00015822,2]
[399479321,1766411440172,-300.0,0.00015822,2]
[399479322,1766411440182,-3670.48787824,0.00015824,2]
[399479323,1766411440192,-168.0,0.0001583,2]
[399479324,1766411440201,-404.08874607,0.0001584,2]
[399479325,1766411440211,-168.0,0.00015843,2]
[399479326,1766411440221,-151.47080458,0.00015846,2]
[399479327,1766411440232,-500.0,0.000159,2]
[399479328,1766411440241,-500.0,0.000159,2]
[399479329,1766411440251,-500.19179488,0.000159,2]
[399479330,1766411440261,-1063.07,0.00015901,2]
[399479331,1766411440270,-174.369,0.00015901,2]
[399479332,1766411440280,-277.49,0.00015901,2]
[399479333,1766411440292,-457.04108268,0.00015901,2]
[399479334,1766411440302,-500.0,0.00015901,2]
[399479335,1766411440311,-500.0,0.00015901,2]
[399479336,1766411440320,-670.58624095,0.00015901,2]
[399479337,1766411440330,-500.0,0.00015901,2]
[399479338,1766411440339,-500.0,0.00015901,2]
[399479339,1766411440349,-500.0,0.00015901,2]
[399479340,1766411440358,-151.0,0.00015901,2]
[399479341,1766411440368,-500.0,0.00015901,2]
[399479342,1766411440381,-500.0,0.00015901,2]
[399479343,1766411440390,-500.0,0.00015901,2]
[399479344,1766411440400,-500.0,0.00015901,2]
[399479345,1766411440411,-500.0,0.00015901,2]
[399479346,1766411440422,-500.0,0.00015901,2]
[399479347,1766411440431,-500.0,0.00015901,2]
[399479348,1766411440440,-500.0,0.00015901,2]
[399479349,1766411440449,-500.0,0.00015901,2]
[399479350,1766411440459,-500.0,0.00015901,2]
[399479351,1766411440468,-500.0,0.00015901,2]
[399479352,1766411440477,-500.0,0.00015901,2]
[399479353,1766411440486,-250.0,0.00015901,2]
[399479354,1766411440496,-500.0,0.00015901,2]
[399479355,1766411440504,-500.0,0.00015901,2]
[399479356,1766411440514,-454.88526239,0.00015901,2]
[399479357,1766411440523,-250.0,0.00015901,2]
[399479358,1766411440533,-500.0,0.00015901,2]
[399479359,1766411440542,-500.0,0.00015901,2]
[399479360,1766411440551,-250.0,0.00015901,2]
[399479361,1766411440560,-500.0,0.00015901,2]
[399479362,1766411440570,-500.0,0.00015901,2]
[399479363,1766411440579,-151.0,0.00015901,2]
[399479364,1766411440589,-250.0,0.00015901,2]
[399479365,1766411440598,-500.0,0.00015901,2]
[399479366,1766411440608,-500.0,0.00015901,2]
[399479367,1766411440617,-151.0,0.00015901,2]
[399479368,1766411440627,-250.0,0.00015901,2]
[399479369,1766411440638,-500.0,0.00015901,2]
[399479370,1766411440647,-151.0,0.00015901,2]
[399479371,1766411440657,-250.0,0.00015901,2]
[399479372,1766411440667,-151.0,0.00015901,2]
[399479373,1766411440677,-250.0,0.00015901,2]
[399479374,1766411440686,-151.0,0.00015901,2]
[399479375,1766411440696,-151.0,0.00015901,2]
[399479376,1766411440705,-250.0,0.00015901,2]
[399479377,1766411440715,-200.0,0.00015901,2]
[399479378,1766411440724,-151.0,0.00015901,2]
[399479379,1766411440733,-500.0,0.00015901,2]
[399479380,1766411440743,-250.0,0.00015901,2]
[399479381,1766411440752,-151.0,0.00015901,2]
[399479382,1766411440762,-500.0,0.00015901,2]
[399479383,1766411440771,-348.97018415,0.00015901,2]
[399479384,1766411440780,-250.0,0.00015901,2]
[399479385,1766411440790,-151.0,0.00015901,2]
[399479386,1766411440798,-500.0,0.00015901,2]
[399479387,1766411440808,-250.0,0.00015901,2]
[399479388,1766411440818,-151.0,0.00015901,2]